bitfinex/quotes_ETHUSD_20251125
["timestamp","ask_amount","ask_price","bid_price","bid_amount"]
[1764071358528,0.0008,2898.8,2898.7,4.25217697]
[1764071359215,0.0008,2898.8,2898.7,4.74307697]
[1764071359531,0.0008,2898.8,2898.7,4.52507697]
[1764071359711,0.0008,2898.8,2898.7,4.74307697]
[1764071360904,0.0008,2898.8,2898.7,4.03417697]
[1764071361109,0.0008,2898.8,2898.7,4.25217697]
[1764071362432,0.0008,2898.8,2898.7,4.73827697]
[1764071363131,0.0008,2898.8,2898.7,4.77277519]
[1764071363623,0.0008,2898.8,2898.7,4.25217697]
[1764071363940,0.0008,2898.8,2898.7,4.22587697]
[1764071364507,0.0008,2898.8,2898.7,3.76657697]
[1764071364903,0.0008,2898.8,2898.7,3.54857697]
[1764071365505,0.0008,2898.8,2898.7,3.76657697]
[1764071365706,0.4965,2898.8,2898.7,3.76657697]
[1764071365944,0.4965,2898.8,2898.7,3.54857697]
[1764071366149,0.4965,2898.8,2898.7,3.76657697]
[1764071366813,0.4965,2898.8,2898.7,3.54857697]
[1764071367014,0.9533,2898.8,2898.7,3.54857697]
[1764071367319,0.4965,2898.8,2898.7,3.54857697]
[1764071367633,0.0008,2898.8,2898.7,3.54857697]
[1764071367836,0.4965,2898.8,2898.7,3.54857697]
[1764071370224,0.9533,2898.8,2898.7,3.54857697]
[1764071370830,0.4965,2898.8,2898.7,3.76657697]
[1764071373316,0.9533,2898.8,2898.7,3.76657697]
[1764071373639,0.9533,2898.8,2898.7,3.54857697]
[1764071376136,0.9525,2898.8,2898.7,3.54857697]
[1764071378218,0.9545,2898.8,2898.7,0.09875464]
[1764071379149,1.27790576,2898.8,2898.7,0.09875464]
[1764071380248,0.9545,2898.8,2898.7,0.09875464]
[1764071380444,1.27785454,2898.8,2898.7,0.09875464]
[1764071381449,0.9545,2898.8,2898.7,0.09875464]
[1764071381685,1.27785649,2898.8,2898.7,0.09875464]
[1764071382822,4.36742287,2898.8,2898.7,0.09875464]
[1764071383443,1.4160828,2898.8,2898.7,0.09875464]
[1764071388147,1.41596459,2898.8,2898.7,0.09875464]
[1764071391942,0.95916459,2898.8,2898.7,0.09875464]
[1764071392162,1.38806459,2898.8,2898.7,0.09875464]
[1764071399190,0.92946459,2898.8,2898.7,0.09875464]
[1764071400201,1.40996459,2898.8,2898.7,0.09875464]
[1764071400970,0.92866459,2898.8,2898.7,0.09875464]
[1764071402185,1.40996459,2898.8,2898.7,0.09875464]
[1764071402500,0.0012,2898.8,2898.7,7.57761396]
[1764071402867,0.0012,2898.8,2898.7,9.33961174]
[1764071403068,0.0012,2898.8,2898.7,5.77237475]
[1764071403288,0.0012,2898.8,2898.7,4.70617697]
[1764071404834,0.0012,2898.8,2898.7,4.12962233]
[1764071404994,0.0012,2898.8,2898.7,4.22837697]
[1764071405610,0.0012,2898.8,2898.7,4.70617697]
[1764071407241,0.0012,2898.8,2898.7,4.01037697]
[1764071407401,0.9677,2898.8,2898.6,0.001]
[1764071407738,0.1272,2898.7,2898.6,0.001]
[1764071407888,0.1272,2898.7,2898.6,0.09975464]
[1764071407889,0.45024247,2898.7,2898.6,0.09975464]
[1764071408427,0.93154247,2898.7,2898.6,0.001]
[1764071409399,0.93154247,2898.7,2898.6,0.09975464]
[1764071409808,0.45024247,2898.7,2898.6,0.09975464]
[1764071410625,0.32304247,2898.7,2898.6,0.56155464]
[1764071411342,0.0012,2898.8,2898.6,3.91274135]
[1764071411552,0.0012,2898.8,2898.7,0.09875464]
[1764071411723,0.32421113,2898.8,2898.7,0.09875464]
[1764071412248,0.0012,2898.8,2898.7,0.77855464]
[1764071412455,0.0012,2898.8,2898.7,1.25635464]
[1764071413360,0.0012,2898.8,2898.7,4.70617697]
[1764071415737,0.0012,2898.8,2898.7,4.84435362]
[1764071415938,0.0012,2898.8,2898.7,5.56994773]
[1764071416138,0.0012,2898.8,2898.7,5.97545173]
[1764071416345,0.0012,2898.8,2898.7,6.00994995]
[1764071416573,0.002,2898.9,2898.8,0.50425864]
[1764071416769,0.002,2898.9,2898.8,1.44385864]
[1764071418757,0.002,2898.9,2898.8,4.89356196]
[1764071418977,0.002,2898.9,2898.8,4.70605796]
[1764071419372,0.002,2898.9,2898.8,4.74055499]
[1764071419875,0.002,2898.9,2898.8,5.14605899]
[1764071420082,0.002,2898.9,2898.8,5.11156196]
[1764071420478,0.002,2898.9,2898.8,5.14605899]
[1764071420778,0.002,2898.9,2898.8,5.11156196]
[1764071421885,0.002,2898.9,2898.8,4.48805796]
[1764071422247,0.002,2898.9,2898.8,4.70605796]
[1764071422861,0.002,2898.9,2898.8,4.48805796]
[1764071423057,0.002,2898.9,2898.8,4.70605796]
[1764071423983,0.002,2898.9,2898.8,4.62622554]
[1764071424180,0.0012,2898.9,2898.8,4.14842554]
[1764071424482,0.0012,2898.9,2898.8,4.95385207]
[1764071424856,0.0012,2898.9,2898.8,5.42605207]
[1764071425663,0.0012,2898.9,2898.8,5.4605491]
[1764071426251,0.0012,2898.9,2898.8,5.42605207]
[1764071426469,0.0012,2898.9,2898.8,4.95385207]
[1764071428699,0.457,2898.9,2898.8,4.27405207]
[1764071428903,0.0012,2898.9,2898.8,4.85579743]
[1764071429073,0.0012,2898.9,2898.8,5.4612491]
[1764071436819,0.0012,2898.9,2898.8,4.95455207]
[1764071436991,0.0012,2898.9,2898.8,5.42675207]
[1764071437557,0.0012,2898.9,2898.8,4.73655207]
[1764071437835,0.457,2898.9,2898.8,3.76645796]
[1764071438489,0.9358,2898.9,2898.8,3.76645796]
[1764071440491,0.0012,2898.9,2898.8,3.76645796]
[1764071440697,0.0012,2898.9,2898.8,4.22895796]
[1764071440918,0.0012,2898.9,2898.8,3.76645796]
[1764071441236,0.457,2898.9,2898.8,3.76645796]
[1764071443461,0.0012,2898.9,2898.8,3.76645796]
[1764071443761,0.0012,2898.9,2898.8,3.54845796]
[1764071443964,0.0012,2898.9,2898.8,3.76645796]
[1764071444963,0.0012,2898.9,2898.8,3.76745796]
[1764071445555,0.0012,2898.9,2898.8,4.22995796]
[1764071445756,0.0012,2898.9,2898.8,4.26445499]
[1764071445933,0.0012,2898.9,2898.8,4.22995796]
[1764071448271,0.0004,2898.9,2898.8,4.22995796]
[1764071448770,0.4562,2898.9,2898.8,3.76745796]
[1764071450452,0.9488,2898.9,2898.8,3.76745796]
[1764071450664,0.4562,2898.9,2898.8,3.76745796]
[1764071451867,0.0004,2898.9,2898.8,3.76745796]
[1764071452880,0.0004,2898.9,2898.8,4.21795796]
[1764071453047,0.0004,2898.9,2898.8,7.83698638]
[1764071453253,0.0004,2898.9,2898.8,8.52808346]
[1764071453479,0.0004,2898.9,2898.8,12.02121885]
[1764071454177,0.0004,2898.9,2898.8,8.93358746]
[1764071456192,0.002,2899.0,2898.9,1.13109811]
[1764071456485,0.002,2899.0,2898.9,2.21174859]
[1764071457274,0.002,2899.1,2899.0,4.58056344]
[1764071457482,0.002,2899.1,2899.0,8.71434947]
[1764071460390,0.002,2899.2,2899.1,0.50425864]
[1764071460596,0.002,2899.6,2899.4,0.751304]
[1764071460782,0.002,2899.6,2899.5,0.50425864]
[1764071460982,0.1884,2900.8,2900.1,0.09875464]
[1764071461202,0.1884,2900.8,2900.1,4.78688014]
[1764071461414,0.6439,2900.8,2900.1,5.25208014]
[1764071462276,0.4575,2900.7,2900.1,8.7002371]
[1764071463092,0.4575,2900.7,2900.1,3.5469116]
[1764071463093,0.9272,2900.2,2900.1,3.5469116]
[1764071463311,0.9272,2900.2,2900.1,3.7649116]
[1764071465388,0.9272,2900.2,2900.1,0.09875464]
[1764071465620,0.9272,2900.2,2899.7,0.09875464]
[1764071465827,3.55568229,2900.1,2899.7,0.09875464]
[1764071466001,0.6612,2899.8,2899.7,0.09875464]
[1764071466404,1.1167,2899.8,2899.5,0.09875464]
[1764071466723,0.4697,2899.6,2899.5,0.09875464]
[1764071467223,0.9252,2899.6,2899.5,0.09875464]
[1764071468186,0.9252,2899.6,2899.3,0.09875464]
[1764071468392,0.4555,2899.5,2899.3,3.54785748]
[1764071468612,0.4697,2899.4,2899.3,0.09875464]
[1764071469019,0.9252,2899.4,2899.3,0.09875464]
[1764071470710,0.9252,2899.4,2899.3,3.54786304]
[1764071470894,0.9252,2899.4,2899.3,0.09875464]
[1764071471625,0.9252,2899.4,2899.1,0.31675464]
[1764071471823,0.1754,2899.2,2899.1,0.31675464]
[1764071472224,0.1746,2899.2,2899.1,0.31675464]
[1764071472427,0.6301,2899.2,2899.1,0.31675464]
[1764071472632,0.6301,2899.2,2899.1,3.54810098]
[1764071472838,0.6301,2899.2,2899.1,3.76610098]
[1764071476412,0.1746,2899.2,2899.1,3.76610098]
[1764071477038,0.6301,2899.2,2899.1,3.76610098]
[1764071477209,0.6301,2899.2,2899.1,3.54810098]
[1764071477537,0.6301,2899.2,2899.1,3.76610098]
[1764071478104,0.6301,2899.2,2899.1,3.54810098]
[1764071478402,0.6301,2899.2,2899.1,0.09875464]
[1764071478930,0.6301,2899.2,2899.1,3.54810098]
[1764071482541,0.1746,2899.2,2899.1,3.54810098]
[1764071482936,0.6692,2899.2,2899.1,3.54810098]
[1764071483261,0.6692,2899.2,2899.1,0.09875464]
[1764071483554,0.6692,2899.2,2899.0,0.001]
[1764071483713,0.9227,2899.1,2899.0,0.001]
[1764071486237,0.405504,2899.0,2898.8,0.001]
[1764071486437,0.1771,2898.9,2898.8,0.001]
[1764071486845,0.6717,2898.9,2898.8,0.001]
[1764071487044,5.1687856,2898.9,2898.8,0.001]
[1764071487246,4.84687843,2898.9,2898.8,0.001]
[1764071487453,5.16864782,2898.9,2898.8,0.001]
[1764071488721,1.39729411,2898.9,2898.8,0.001]
[1764071489046,4.84687843,2898.9,2898.8,0.001]
[1764071490147,5.25238243,2898.9,2898.8,0.001]
[1764071490322,5.26493333,2898.9,2898.8,0.001]
[1764071490526,8.67666546,2898.9,2898.8,0.001]
[1764071490747,8.66411456,2898.9,2898.8,0.001]
[1764071491957,5.57390877,2898.9,2898.8,0.001]
[1764071493055,5.58645967,2898.9,2898.8,0.001]
[1764071493238,8.67666546,2898.9,2898.8,0.001]
[1764071493433,8.66411456,2898.9,2898.8,0.001]
[1764071494664,8.66411456,2898.9,2898.3,0.001]
[1764071494665,0.585104,2898.6,2898.3,0.001]
[1764071494850,0.405504,2898.3,2898.1,0.001]
[1764071495051,4.59802879,2898.3,2898.1,0.001]
[1764071495368,5.95651755,2898.3,2898.1,0.001]
[1764071495750,5.8182229,2898.3,2898.1,0.001]
[1764071496139,0.405504,2898.1,2896.9,3.45194881]
[1764071496429,0.91239411,2898.0,2896.6,3.63259948]
[1764071496640,0.91239411,2898.0,2896.6,0.18034213]
[1764071496641,1.66704852,2897.9,2896.6,0.18034213]
[1764071496841,0.4138,2896.7,2896.6,3.7314174]
[1764071497265,0.4138,2896.7,2896.6,0.27909677]
[1764071497455,0.4138,2896.7,2896.6,3.73142018]
[1764071497654,0.1874,2896.9,2896.6,3.73142018]
[1764071497851,0.4702,2896.7,2896.6,0.27909677]
[1764071498363,0.9648,2896.7,2896.6,0.18034213]
[1764071499334,0.4702,2896.7,2896.6,0.27909677]
[1764071499967,0.9648,2896.7,2896.6,0.27909677]
[1764071502053,0.4702,2896.7,2896.6,0.27909677]
[1764071502249,0.682,2896.9,2896.6,0.27909677]
[1764071502455,0.4702,2896.7,2896.6,0.27909677]
[1764071503475,0.4702,2896.7,2896.6,3.73142018]
[1764071503671,0.4702,2896.7,2896.6,0.27909677]
[1764071504842,0.1874,2896.9,2896.6,0.27909677]
[1764071505071,0.682,2896.9,2896.6,0.27909677]
[1764071505448,0.682,2896.9,2896.6,3.73140844]
[1764071505752,0.4702,2896.7,2896.6,0.27909677]
[1764071506774,3.45164877,2897.2,2896.6,0.27909677]
[1764071506775,0.1874,2897.1,2896.9,0.09875464]
[1764071506974,1.22019411,2897.3,2896.9,0.09875464]
[1764071507179,0.4946,2897.2,2896.9,0.09875464]
[1764071507346,0.7126,2897.4,2896.8,3.45208505]
[1764071507550,0.4946,2897.3,2897.0,0.09875464]
[1764071507748,0.4702,2897.1,2896.7,3.55090114]
[1764071507950,0.4702,2897.1,2896.7,7.00310537]
[1764071508248,0.9648,2897.1,2896.7,7.00310537]
[1764071508447,0.9648,2897.1,2896.8,0.09875464]
[1764071508677,0.7126,2897.4,2897.0,0.09875464]
[1764071508852,0.218,2897.4,2897.3,0.09875464]
[1764071509252,1.1828,2897.4,2897.3,0.09875464]
[1764071509450,0.6882,2897.4,2897.1,3.55044854]
[1764071509661,0.4702,2897.4,2897.3,0.09875464]
[1764071509974,0.9648,2897.4,2897.3,0.09875464]
[1764071512790,1.69039411,2897.4,2897.3,0.09875464]
[1764071513295,1.28578175,2897.4,2897.1,0.09875464]
[1764071513588,0.4641,2897.3,2897.1,0.09875464]
[1764071513794,0.4735,2897.2,2897.1,0.09875464]
[1764071515372,0.9376,2897.2,2897.1,0.09875464]
[1764071515858,0.4735,2897.2,2897.1,0.09875464]
[1764071516254,0.79503979,2897.2,2897.1,0.09875464]
[1764071517281,1.25913979,2897.2,2897.1,0.09875464]
[1764071519778,0.79503979,2897.2,2897.1,0.09875464]
[1764071520174,0.79423979,2897.2,2897.1,0.09875464]
[1764071523359,0.32153979,2897.2,2897.1,0.57135464]
[1764071524009,0.32153979,2897.2,2897.1,4.02308222]
[1764071524208,0.32153979,2897.2,2897.1,4.58582758]
[1764071524411,0.32153979,2897.2,2897.1,4.68458222]
[1764071524788,0.002,2897.7,2897.6,0.09875464]
[1764071525114,0.32497489,2897.7,2897.6,4.71698661]
[1764071526511,0.32497489,2897.7,2897.6,4.24048661]
[1764071526673,0.69867489,2897.7,2897.6,0.31675464]
[1764071527101,0.69867489,2897.7,2897.4,3.4512776]
[1764071527405,0.002,2897.7,2897.6,0.57135464]
[1764071527608,0.3248249,2897.7,2897.6,0.57135464]
[1764071529507,0.3248249,2897.7,2897.6,4.02248661]
[1764071530176,0.32470214,2897.7,2897.6,4.02248661]
[1764071530377,0.002,2897.7,2897.6,4.49898661]
[1764071530778,0.002,2897.7,2897.6,4.02248661]
[1764071531505,0.002,2897.7,2897.6,4.49898661]
[1764071533226,0.002,2898.0,2897.9,3.54952933]
[1764071533398,0.002,2898.0,2897.9,4.96572344]
[1764071533595,0.002,2898.0,2897.9,5.44222344]
[1764071533927,0.002,2898.0,2897.9,5.22422344]
[1764071534230,0.002,2898.0,2897.9,5.44222344]
[1764071534426,0.002,2898.0,2897.9,4.71662933]
[1764071535216,0.002,2898.0,2897.9,4.49862933]
[1764071535531,0.002,2898.0,2897.9,4.71662933]
[1764071539528,0.002,2898.0,2897.9,4.75113707]
[1764071540227,0.002,2898.0,2897.9,4.71662933]
[1764071540670,0.002,2898.0,2897.9,4.75113707]
[1764071540869,0.002,2898.0,2897.9,9.4801428]
[1764071541068,0.002,2898.0,2897.9,9.44563506]
[1764071541667,0.002,2898.3,2898.2,0.82434875]
[1764071541869,0.002,2898.3,2898.2,1.45524875]
[1764071542167,0.002,2898.3,2898.2,1.95204875]
[1764071542365,0.002,2898.3,2898.2,2.17004875]
[1764071543233,0.002,2898.3,2898.2,5.62046625]
[1764071544162,0.0012,2898.3,2898.2,5.62046625]
[1764071544334,0.0012,2898.3,2898.2,5.65497042]
[1764071544532,0.002,2899.2,2899.1,0.09875464]
[1764071544755,0.002,2899.2,2899.1,1.45485464]
[1764071545266,0.002,2899.2,2899.1,4.90420098]
[1764071546470,0.002,2899.2,2899.1,4.23300098]
[1764071547959,0.002,2899.2,2899.1,4.90420098]
[1764071548166,0.002,2899.2,2899.1,4.23300098]
[1764071551100,0.4873,2899.2,2899.1,3.76610098]
[1764071551394,0.9698,2899.2,2899.1,3.76610098]
[1764071551996,0.9698,2899.2,2899.1,0.09875464]
[1764071552196,0.9698,2899.2,2899.0,0.09875464]
[1764071552496,0.5814,2899.1,2899.0,0.09875464]
[1764071554612,0.0989,2899.1,2899.0,0.09875464]
[1764071554815,0.5814,2899.1,2899.0,0.09875464]
[1764071556625,0.002,2899.2,2899.1,0.09875464]
[1764071556991,0.4873,2899.2,2899.1,0.09875464]
[1764071557326,0.9698,2899.2,2899.1,0.09875464]
[1764071558403,0.9698,2899.2,2898.9,3.44957288]
[1764071558605,0.4825,2899.1,2898.9,3.44957288]
[1764071558810,0.4853,2899.0,2898.9,3.54832752]
[1764071559217,0.9678,2899.0,2898.9,3.54832752]
[1764071559816,0.4853,2899.0,2898.9,3.54832752]
[1764071560714,0.4845,2899.2,2899.1,0.09875464]
[1764071560913,0.4845,2899.2,2898.3,0.69636533]
[1764071560914,7.70533125,2899.2,2898.1,3.4504635]
[1764071561118,7.70533125,2899.2,2898.0,0.001]
[1764071561119,0.6778,2898.2,2898.0,0.001]
[1764071561302,0.82848051,2898.1,2898.0,0.001]
[1764071561492,0.90547651,2898.1,2898.0,0.001]
[1764071561705,0.90547651,2898.1,2898.0,0.09975464]
[1764071565454,0.5831,2898.1,2898.0,0.001]
[1764071565636,0.5831,2898.1,2898.0,0.219]
[1764071565637,4.03363655,2898.1,2898.0,0.219]
[1764071566136,0.5831,2898.1,2898.0,0.219]
[1764071566321,0.5831,2898.1,2898.0,0.001]
[1764071566641,0.5831,2898.1,2898.0,0.219]
[1764071566941,0.5831,2898.1,2898.0,0.001]
[1764071567128,0.5831,2898.1,2898.0,0.219]
[1764071568046,4.03363655,2898.1,2898.0,0.219]
[1764071568246,4.03283655,2898.1,2898.0,0.219]
[1764071569041,0.5823,2898.1,2898.0,0.219]
[1764071569220,4.03283655,2898.1,2898.0,0.219]
[1764071569426,0.5823,2898.1,2898.0,0.219]
[1764071570949,4.03283655,2898.1,2898.0,0.001]
[1764071571139,4.03283655,2898.1,2898.0,0.219]
[1764071573149,4.04538745,2898.1,2898.0,0.219]
[1764071573514,4.04538745,2898.1,2898.0,0.001]
[1764071573719,4.03283655,2898.1,2898.0,0.219]
[1764071574119,4.03283655,2898.1,2898.0,0.001]
[1764071577566,3.91204423,2898.4,2898.0,0.57595464]
[1764071577775,7.04480208,2898.1,2897.7,0.001]
[1764071577956,7.04480208,2898.1,2897.1,0.001]
[1764071577957,0.405504,2897.6,2897.1,0.001]
[1764071578143,7.41908381,2897.5,2897.1,0.001]
[1764071578349,7.90668381,2897.5,2897.1,0.001]
[1764071578737,8.04501529,2897.5,2897.1,0.001]
[1764071580541,4.95391625,2897.5,2897.1,0.001]
[1764071581477,4.81558477,2897.5,2897.1,0.001]
[1764071581672,5.54117888,2897.5,2897.1,0.001]
[1764071581877,5.55372978,2897.5,2897.1,0.001]
[1764071582041,6.29473867,2897.5,2897.1,0.001]
[1764071582345,5.54117888,2897.5,2897.1,0.001]
[1764071582545,6.28203611,2897.5,2897.1,0.001]
[1764071582747,1.13109811,2897.4,2897.1,0.001]
[1764071582946,1.13109811,2897.1,2896.9,0.001]
[1764071583267,1.62069093,2897.0,2896.9,0.001]
[1764071583455,2.10829093,2897.0,2896.9,0.001]
[1764071583662,6.28573177,2897.0,2896.9,0.001]
[1764071584238,6.42409195,2897.0,2896.9,0.001]
[1764071585373,6.43664285,2897.0,2896.9,0.001]
[1764071588463,6.42409195,2897.0,2896.9,0.001]
[1764071590388,6.43664285,2897.0,2896.9,0.001]
[1764071591386,7.11757447,2897.0,2896.9,0.001]
[1764071591590,7.10502357,2897.0,2896.9,0.001]
[1764071592274,6.42329195,2897.0,2896.9,0.001]
[1764071592485,6.43584285,2897.0,2896.9,0.001]
[1764071594063,6.42329195,2897.0,2896.9,0.001]
[1764071594489,6.43584285,2897.0,2896.9,0.001]
[1764071595171,6.42329195,2897.0,2896.9,0.001]
[1764071595569,6.42329195,2897.0,2896.8,0.001]
[1764071595570,1.13109811,2896.9,2896.8,0.001]
[1764071595771,4.21381666,2896.9,2896.8,0.001]
[1764071596282,3.67127203,2896.9,2896.8,0.001]
[1764071596589,8.04688081,2896.9,2896.8,0.001]
[1764071597298,6.4281827,2896.9,2896.8,0.001]
[1764071597455,5.82299071,2896.9,2896.8,0.001]
[1764071597655,6.95408882,2896.9,2896.8,0.001]
[1764071597879,6.94153792,2896.9,2896.8,0.001]
[1764071598086,5.72834381,2896.9,2896.8,0.001]
[1764071598265,6.45393792,2896.9,2896.8,0.001]
[1764071598471,6.94153792,2896.9,2896.8,0.001]
[1764071599684,7.86518081,2896.9,2896.8,0.001]
[1764071600522,6.45393792,2896.9,2896.8,0.001]
[1764071600702,10.03225155,2896.9,2896.8,0.001]
[1764071601787,9.54815155,2896.9,2896.8,0.001]
[1764071601986,10.03225155,2896.9,2896.8,0.001]
[1764071602916,9.54815155,2896.9,2896.8,0.001]
[1764071604322,10.47179444,2896.9,2896.8,0.001]
[1764071605227,9.54815155,2896.9,2896.8,0.001]
[1764071605914,8.95876456,2896.9,2896.8,0.485]
[1764071606088,5.64555093,2896.9,2896.8,0.485]
[1764071606290,6.57262124,2896.9,2896.8,0.485]
[1764071606487,6.57319219,2896.9,2896.8,0.485]
[1764071606905,5.64612188,2896.9,2896.8,0.485]
[1764071607309,6.16768819,2896.9,2896.8,0.485]
[1764071607912,6.16768819,2896.9,2896.8,0.9554]
[1764071608234,5.24061788,2896.9,2896.8,0.9554]
[1764071609135,5.24061788,2896.9,2896.8,0.485]
[1764071609347,5.44500874,2896.9,2896.8,0.485]
[1764071609706,9.02387327,2896.9,2896.8,0.001]
[1764071609908,9.01132237,2896.9,2896.8,0.001]
[1764071610545,9.73691648,2896.9,2896.8,0.001]
[1764071610733,10.9331593,2896.9,2896.8,0.001]
[1764071611107,6.88274567,2896.9,2896.8,0.001]
[1764071611307,10.4490593,2896.9,2896.8,0.001]
[1764071611522,10.9331593,2896.9,2896.8,0.001]
[1764071612041,8.74033551,2896.9,2896.8,0.001]
[1764071612237,9.69653551,2896.9,2896.8,0.001]
[1764071614940,4.92052777,2896.9,2896.8,0.485]
[1764071615138,4.92052777,2896.9,2896.8,0.9554]
[1764071615522,8.0147414,2896.9,2896.8,0.485]
[1764071616132,8.0139414,2896.9,2896.8,0.485]
[1764071616630,8.4860414,2896.9,2896.8,0.001]
[1764071617253,9.41679774,2896.9,2896.8,0.001]
[1764071618159,9.69573551,2896.9,2896.8,0.001]
[1764071618821,8.73953551,2896.9,2896.8,0.485]
[1764071619550,5.64532188,2896.9,2896.8,0.9554]
[1764071619954,5.64532188,2896.9,2896.8,0.485]
[1764071620322,6.57600564,2896.9,2896.8,0.9554]
[1764071620749,6.17050164,2896.9,2896.8,0.9554]
[1764071621658,5.23981788,2896.9,2896.8,0.9554]
[1764071622351,1.78785199,2896.9,2896.8,0.9554]
[1764071622719,5.23981788,2896.9,2896.8,0.9554]
[1764071622919,1.06225788,2896.9,2896.8,0.9554]
[1764071623254,0.32220065,2896.9,2896.8,1.05415464]
[1764071625126,0.32420065,2896.9,2896.8,1.05415464]
[1764071625852,0.32420065,2896.9,2896.8,4.50623969]
[1764071626245,0.32485756,2896.9,2896.8,1.05415464]
[1764071626742,0.002,2896.9,2896.8,1.05415464]
[1764071627157,0.32485756,2896.9,2896.8,1.05415464]
[1764071627455,0.002,2896.9,2896.8,1.05415464]
[1764071627661,0.002,2896.9,2896.8,4.72523969]
[1764071627843,0.32485756,2896.9,2896.8,1.27315464]
[1764071628234,0.32485756,2896.9,2896.8,4.72523969]
[1764071628458,0.002,2896.9,2896.8,4.72523969]
[1764071628758,0.002,2896.9,2896.8,1.27315464]
[1764071628954,0.002,2896.9,2896.8,4.72523969]
[1764071630359,0.002,2896.9,2896.8,1.27315464]
[1764071631459,0.32472327,2896.9,2896.8,1.27315464]
[1764071631662,0.32472327,2896.9,2896.8,1.1814]
[1764071631960,0.32472327,2896.9,2896.8,0.703]
[1764071633748,0.002,2896.9,2896.8,1.1804]
[1764071634135,0.32472327,2896.9,2896.8,1.1804]
[1764071634536,0.002,2896.9,2896.8,1.27915464]
[1764071634866,0.32472327,2896.9,2896.8,1.27915464]
[1764071635163,0.002,2896.9,2896.8,1.27915464]
[1764071635461,0.32472327,2896.9,2896.8,1.27915464]
[1764071635665,0.002,2896.9,2896.8,1.27915464]
[1764071635964,0.32472327,2896.9,2896.8,1.27915464]
[1764071636160,0.002,2896.9,2896.8,1.27915464]
[1764071636365,0.32472327,2896.9,2896.8,1.27915464]
[1764071636550,0.002,2896.9,2896.8,1.27915464]
[1764071636757,0.32472327,2896.9,2896.8,1.27915464]
[1764071637136,0.002,2896.9,2896.8,1.27915464]
[1764071637353,0.32472327,2896.9,2896.8,1.27915464]
[1764071637668,0.002,2896.9,2896.8,1.06115464]
[1764071637859,0.32472327,2896.9,2896.8,1.27915464]
[1764071638241,0.002,2896.9,2896.8,1.27915464]
[1764071638444,0.32472327,2896.9,2896.8,1.27915464]
[1764071638943,0.002,2896.9,2896.8,1.27915464]
[1764071639142,0.32472327,2896.9,2896.8,1.27915464]
[1764071639753,0.002,2896.9,2896.8,1.27915464]
[1764071640249,0.82097417,2896.9,2896.8,0.001]
[1764071640455,0.80842327,2896.9,2896.8,0.001]
[1764071640763,0.80842327,2896.9,2896.8,0.4771]
[1764071640764,0.32392327,2896.9,2896.8,0.4771]
[1764071640960,0.0012,2896.9,2896.8,0.4771]
[1764071641260,0.32392327,2896.9,2896.8,0.9724]
[1764071641460,0.0012,2896.9,2896.8,0.9724]
[1764071641668,0.32392327,2896.9,2896.8,4.42448505]
[1764071641866,0.0012,2896.9,2896.8,1.07115464]
[1764071642388,0.0012,2896.9,2896.8,1.28915464]
[1764071642389,0.3239679,2896.9,2896.8,1.28915464]
[1764071642874,0.0012,2896.9,2896.8,1.28915464]
[1764071643079,0.3239679,2896.9,2896.8,1.28915464]
[1764071648669,0.3239679,2896.9,2896.8,0.79385464]
[1764071648869,0.3239679,2896.9,2896.8,1.28915464]
[1764071649099,0.3239679,2896.9,2896.8,4.74123969]
[1764071649803,0.3239679,2896.9,2896.8,1.28915464]
[1764071650200,0.80903145,2896.9,2896.8,0.219]
[1764071650503,0.82158235,2896.9,2896.8,0.219]
[1764071651271,0.80903145,2896.9,2896.8,0.219]
[1764071651502,1.55432623,2896.9,2896.8,0.219]
[1764071651916,1.55432623,2896.9,2896.8,0.001]
[1764071651917,5.49089212,2896.9,2896.8,0.001]
[1764071652919,1.55432623,2896.9,2896.8,0.001]
[1764071653194,5.00629212,2896.9,2896.8,0.001]
[1764071653518,1.06982623,2896.9,2896.8,1.07115464]
[1764071653713,1.06982623,2896.9,2896.8,0.57585464]
[1764071654517,0.32453145,2896.9,2896.8,0.57585464]
[1764071658029,0.32453145,2896.9,2896.8,1.07115464]
[1764071658413,0.32453145,2896.9,2896.8,0.57585464]
[1764071660002,0.32453145,2896.9,2896.8,1.07115464]
[1764071660835,0.32453145,2896.9,2896.8,1.28915464]
[1764071662836,0.32453145,2896.9,2896.8,4.74123969]
[1764071663429,0.32453145,2896.9,2896.8,4.52323969]
[1764071663629,0.32453145,2896.9,2896.8,4.74123969]
[1764071664001,0.32453145,2896.9,2896.8,1.28915464]
[1764071664403,0.32373145,2896.9,2896.8,4.74123969]
[1764071665224,0.32373145,2896.9,2896.8,0.001]
[1764071665225,0.78223145,2896.9,2896.8,0.001]
[1764071665545,1.9910667,2896.9,2896.8,0.001]
[1764071665839,1.99113735,2896.9,2896.8,0.001]
[1764071666341,1.24583145,2896.9,2896.8,0.001]
[1764071666929,4.69779734,2896.9,2896.8,0.001]
[1764071667135,5.4431021,2896.9,2896.8,0.001]
[1764071667330,1.99113621,2896.9,2896.8,0.001]
[1764071668544,2.00368711,2896.9,2896.8,0.001]
[1764071668924,1.99113621,2896.9,2896.8,0.001]
[1764071669126,1.52753621,2896.9,2896.8,0.001]
[1764071669648,1.06903621,2896.9,2896.8,0.58795464]
[1764071670021,0.32373145,2896.9,2896.8,0.58795464]
[1764071671152,1.06903621,2896.9,2896.8,0.58795464]
[1764071671342,0.32373145,2896.9,2896.8,0.58795464]
[1764071671721,1.06903621,2896.9,2896.8,0.58795464]
[1764071671949,0.32373145,2896.9,2896.8,0.58795464]
[1764071672952,0.32373145,2896.9,2896.8,4.04003969]
[1764071673451,0.32373145,2896.9,2896.8,4.53343969]
[1764071673650,0.32373145,2896.9,2896.8,4.04003969]
[1764071673857,0.32373145,2896.9,2896.8,4.53343969]
[1764071675363,0.32373145,2896.9,2896.8,0.80595464]
[1764071675767,0.32373145,2896.9,2896.8,0.58795464]
[1764071675967,0.32373145,2896.9,2896.8,0.31775464]
[1764071675968,0.78223145,2896.9,2896.8,0.31775464]
[1764071677259,0.32373145,2896.9,2896.8,0.31775464]